[Event "Titled Tuesday Blitz May 16 Early 2023"]
[White "ArtemDyachuk"]
[Black "Lenderman, Aleksandr"]
[BlackFideId "2021285"]
[WhiteElo "2508"]
[BlackElo "2607"]
[Result "0-1"]
[Round "01"]
[TimeControl "180+2"]
[Date "2023.05.16"]
[WhiteClock "0:00:25"]
[BlackClock "0:01:55"]

1. Nf3 {[%clk 0:02:51]}  e6 {[%clk 0:03:00]} 2. c4 {[%clk 0:02:50]}  b6 {[%clk 0:03:01]} 3. Nc3 {[%clk 0:02:49]}  Bb7 {[%clk 0:03:01]} 4. e4 {[%clk 0:02:40]}  Nf6 {[%clk 0:03:00]} 5. e5 {[%clk 0:02:40]}  Ne4 {[%clk 0:02:59]} 6. Nxe4 {[%clk 0:02:39]}  Bxe4 {[%clk 0:03:00]} 7. d4 {[%clk 0:02:38]}  Bb4+ {[%clk 0:02:58]} 8. Bd2 {[%clk 0:02:38]}  Bxf3 {[%clk 0:02:58]} 9. gxf3 {[%clk 0:02:29]}  Qe7 {[%clk 0:02:57]} 10. f4 {[%clk 0:02:26]}  Nc6 {[%clk 0:02:57]} 11. Bg2 {[%clk 0:02:25]}  O-O {[%clk 0:02:57]} 12. a3 {[%clk 0:02:22]}  Bxd2+ {[%clk 0:02:57]} 13. Qxd2 {[%clk 0:02:23]}  Rad8 {[%clk 0:02:56]} 14. Qc3 {[%clk 0:02:20]}  Qh4 {[%clk 0:02:55]} 15. Qe3 {[%clk 0:02:14]}  Ne7 {[%clk 0:02:55]} 16. Be4 {[%clk 0:02:09]}  f5 {[%clk 0:02:55]} 17. exf6 {[%clk 0:01:41]}  Rxf6 {[%clk 0:02:30]} 18. Ke2 {[%clk 0:01:33]}  Rxf4 {[%clk 0:02:20]} 19. f3 {[%clk 0:01:33]}  Nf5 {[%clk 0:02:08]} 20. Qd3 {[%clk 0:01:09]}  Nd6 {[%clk 0:02:07]} 21. Kd2 {[%clk 0:00:35]}  Nxe4+ {[%clk 0:01:55]} 22. fxe4 {[%clk 0:00:36]}  Rxe4 {[%clk 0:01:55]} 23. Rae1 {[%clk 0:00:25]}  Rxd4 {[%clk 0:01:55]} 0-1


[Site "https://www.chess.com"]

[Event "Titled Tuesday Blitz May 16 Early 2023"]
[White "Shapiro, Viktor"]
[Black "Mitrabha, Guha"]
[WhiteFideId "4175700"]
[BlackFideId "5057000"]
[WhiteElo "2152"]
[BlackElo "2507"]
[Result "0-1"]
[Round "01"]
[TimeControl "180+2"]
[Date "2023.05.16"]
[WhiteClock "0:00:00"]
[BlackClock "0:01:19"]

1. Nf3 {[%clk 0:03:00]}  g6 {[%clk 0:02:59]} 2. c4 {[%clk 0:02:59]}  Bg7 {[%clk 0:03:00]} 3. Nc3 {[%clk 0:02:59]}  c5 {[%clk 0:03:00]} 4. g3 {[%clk 0:02:59]}  Nc6 {[%clk 0:03:01]} 5. Bg2 {[%clk 0:03:00]}  e6 {[%clk 0:03:02]} 6. O-O {[%clk 0:03:00]}  Nge7 {[%clk 0:03:02]} 7. d3 {[%clk 0:03:00]}  O-O {[%clk 0:03:03]} 8. a3 {[%clk 0:03:01]}  d5 {[%clk 0:03:03]} 9. Bg5 {[%clk 0:02:58]}  h6 {[%clk 0:03:02]} 10. Bd2 {[%clk 0:02:58]}  b6 {[%clk 0:03:02]} 11. cxd5 {[%clk 0:02:52]}  exd5 {[%clk 0:02:59]} 12. Qa4 {[%clk 0:02:46]}  d4 {[%clk 0:02:53]} 13. Na2 {[%clk 0:02:28]}  Bd7 {[%clk 0:02:46]} 14. Qd1 {[%clk 0:02:22]}  a5 {[%clk 0:02:40]} 15. b4 {[%clk 0:02:18]}  cxb4 {[%clk 0:02:39]} 16. axb4 {[%clk 0:02:18]}  a4 {[%clk 0:02:39]} 17. b5 {[%clk 0:02:09]}  Na7 {[%clk 0:02:29]} 18. Qxa4 {[%clk 0:02:08]}  Nxb5 {[%clk 0:02:29]} 19. Qb3 {[%clk 0:02:07]}  Ra3 {[%clk 0:02:26]} 20. Qb2 {[%clk 0:02:06]}  Nd5 {[%clk 0:02:24]} 21. Nb4 {[%clk 0:02:04]}  Rxa1 {[%clk 0:02:24]} 22. Rxa1 {[%clk 0:02:05]}  Ndc3 {[%clk 0:02:24]} 23. Be1 {[%clk 0:01:57]}  Qe7 {[%clk 0:02:19]} 24. Bf1 {[%clk 0:01:43]}  Re8 {[%clk 0:02:09]} 25. h4 {[%clk 0:00:54]}  Nxe2+ {[%clk 0:01:59]} 26. Bxe2 {[%clk 0:00:54]}  Qxe2 {[%clk 0:02:00]} 27. Qxe2 {[%clk 0:00:54]}  Rxe2 {[%clk 0:01:59]} 28. Nd5 {[%clk 0:00:52]}  Bc6 {[%clk 0:01:55]} 29. Kf1 {[%clk 0:00:48]}  Rxe1+ {[%clk 0:01:53]} 30. Rxe1 {[%clk 0:00:46]}  Bxd5 {[%clk 0:01:52]} 31. Re8+ {[%clk 0:00:46]}  Kh7 {[%clk 0:01:52]} 32. Ne5 {[%clk 0:00:28]}  Nc3 {[%clk 0:01:40]} 33. f4 {[%clk 0:00:19]}  b5 {[%clk 0:01:38]} 34. Rb8 {[%clk 0:00:00]}  Bb3 {[%clk 0:01:19]} 0-1


[Site "https://www.chess.com"]

[Event "Titled Tuesday Blitz May 16 Early 2023"]
[White "Yeletsky, Ivan"]
[Black "Baches Garcia, Guillermo"]
[WhiteFideId "24180327"]
[BlackFideId "2209764"]
[WhiteElo "2380"]
[BlackElo "2506"]
[Result "1-0"]
[Round "01"]
[TimeControl "180+2"]
[Date "2023.05.16"]
[WhiteClock "0:00:18"]
[BlackClock "0:00:00"]

1. e4 {[%clk 0:02:58]}  c5 {[%clk 0:02:59]} 2. Nf3 {[%clk 0:02:56]}  d6 {[%clk 0:02:59]} 3. c3 {[%clk 0:02:56]}  Nf6 {[%clk 0:02:59]} 4. Qc2 {[%clk 0:02:56]}  Qc7 {[%clk 0:02:57]} 5. Bc4 {[%clk 0:02:55]}  g6 {[%clk 0:02:55]} 6. d4 {[%clk 0:02:52]}  Nc6 {[%clk 0:02:38]} 7. d5 {[%clk 0:02:43]}  Na5 {[%clk 0:02:26]} 8. Be2 {[%clk 0:02:43]}  Bg7 {[%clk 0:02:15]} 9. Na3 {[%clk 0:02:37]}  O-O {[%clk 0:02:02]} 10. b4 {[%clk 0:02:06]}  cxb4 {[%clk 0:01:57]} 11. cxb4 {[%clk 0:02:07]}  Qxc2 {[%clk 0:01:50]} 12. Nxc2 {[%clk 0:02:08]}  Nxe4 {[%clk 0:01:45]} 13. Nfd4 {[%clk 0:02:07]}  Bd7 {[%clk 0:01:06]} 14. bxa5 {[%clk 0:01:49]}  Nc3 {[%clk 0:01:03]} 15. Bf3 {[%clk 0:01:48]}  Rfc8 {[%clk 0:00:59]} 16. O-O {[%clk 0:01:44]}  Ba4 {[%clk 0:00:57]} 17. Bg5 {[%clk 0:01:37]}  Rc4 {[%clk 0:00:43]} 18. Nb3 {[%clk 0:01:04]}  Nxa2 {[%clk 0:00:28]} 19. Ncd4 {[%clk 0:00:25]}  Bxb3 {[%clk 0:00:23]} 20. Nxb3 {[%clk 0:00:26]}  Bxa1 {[%clk 0:00:22]} 21. Rxa1 {[%clk 0:00:26]}  Nb4 {[%clk 0:00:21]} 22. Bxe7 {[%clk 0:00:26]}  Nc2 {[%clk 0:00:19]} 23. Rf1 {[%clk 0:00:20]}  Rb4 {[%clk 0:00:17]} 24. Nd2 {[%clk 0:00:17]}  Nd4 {[%clk 0:00:18]} 25. Bxd6 {[%clk 0:00:16]}  Nxf3+ {[%clk 0:00:17]} 26. gxf3 {[%clk 0:00:13]}  Rd4 {[%clk 0:00:16]} 27. Ne4 {[%clk 0:00:14]}  Rxd5 {[%clk 0:00:16]} 28. Nf6+ {[%clk 0:00:14]}  Kg7 {[%clk 0:00:16]} 29. Nxd5 {[%clk 0:00:15]}  Rd8 {[%clk 0:00:16]} 30. Be5+ {[%clk 0:00:15]}  Kh6 {[%clk 0:00:15]} 31. Nf6 {[%clk 0:00:14]}  Rd2 {[%clk 0:00:13]} 32. f4 {[%clk 0:00:15]}  Ra2 {[%clk 0:00:12]} 33. Kg2 {[%clk 0:00:16]}  Rxa5 {[%clk 0:00:11]} 34. h4 {[%clk 0:00:17]}  b5 {[%clk 0:00:11]} 35. Rd1 {[%clk 0:00:18]}  b4 {[%clk 0:00:00]} 36. Rd7 {[%clk 0:00:18]} 1-0


[Site "https://www.chess.com"]

[Event "Titled Tuesday Blitz May 16 Early 2023"]
[White "Chernomordik, Pavel"]
[Black "Bortnyk, Mykola"]
[WhiteFideId "2804530"]
[BlackFideId "14120836"]
[WhiteElo "2193"]
[BlackElo "2582"]
[Result "0-1"]
[Round "01"]
[TimeControl "180+2"]
[Date "2023.05.16"]
[WhiteClock "0:00:03"]
[BlackClock "0:00:11"]

1. e4 {[%clk 0:02:58]}  Nf6 {[%clk 0:02:59]} 2. Nc3 {[%clk 0:02:57]}  d5 {[%clk 0:02:59]} 3. e5 {[%clk 0:02:57]}  Nfd7 {[%clk 0:02:59]} 4. f4 {[%clk 0:02:57]}  c5 {[%clk 0:02:59]} 5. Nf3 {[%clk 0:02:56]}  Nb6 {[%clk 0:02:55]} 6. g3 {[%clk 0:02:54]}  Nc6 {[%clk 0:02:49]} 7. Bg2 {[%clk 0:02:54]}  Bg4 {[%clk 0:02:48]} 8. d3 {[%clk 0:02:46]}  e6 {[%clk 0:02:43]} 9. h3 {[%clk 0:02:42]}  Bxf3 {[%clk 0:02:43]} 10. Bxf3 {[%clk 0:02:42]}  Be7 {[%clk 0:02:41]} 11. Bd2 {[%clk 0:02:36]}  Qd7 {[%clk 0:02:33]} 12. a4 {[%clk 0:02:32]}  f6 {[%clk 0:02:17]} 13. a5 {[%clk 0:02:31]}  Nc8 {[%clk 0:02:17]} 14. exf6 {[%clk 0:02:26]}  Bxf6 {[%clk 0:02:18]} 15. f5 {[%clk 0:02:18]}  N8e7 {[%clk 0:02:13]} 16. Bh5+ {[%clk 0:02:06]}  g6 {[%clk 0:02:11]} 17. fxg6 {[%clk 0:02:05]}  hxg6 {[%clk 0:02:12]} 18. Bg4 {[%clk 0:02:06]}  Be5 {[%clk 0:01:58]} 19. Ne2 {[%clk 0:02:01]}  Nf5 {[%clk 0:01:47]} 20. Bf4 {[%clk 0:01:45]}  Qd6 {[%clk 0:01:29]} 21. Bxf5 {[%clk 0:01:26]}  gxf5 {[%clk 0:01:28]} 22. c3 {[%clk 0:01:25]}  O-O-O {[%clk 0:01:23]} 23. Qa4 {[%clk 0:01:21]}  Bxf4 {[%clk 0:01:21]} 24. Qxf4 {[%clk 0:01:15]}  Qxf4 {[%clk 0:01:09]} 25. Nxf4 {[%clk 0:01:13]}  Kd7 {[%clk 0:01:06]} 26. Kf2 {[%clk 0:01:11]}  Kd6 {[%clk 0:01:05]} 27. h4 {[%clk 0:01:00]}  e5 {[%clk 0:01:03]} 28. Nh3 {[%clk 0:00:59]}  Rh5 {[%clk 0:00:55]} 29. Kg2 {[%clk 0:00:55]}  Rg8 {[%clk 0:00:48]} 30. Ng5 {[%clk 0:00:54]}  e4 {[%clk 0:00:43]} 31. a6 {[%clk 0:00:52]}  b5 {[%clk 0:00:38]} 32. Rad1 {[%clk 0:00:49]}  Re8 {[%clk 0:00:29]} 33. dxe4 {[%clk 0:00:43]}  fxe4 {[%clk 0:00:30]} 34. Rhe1 {[%clk 0:00:43]}  Ke5 {[%clk 0:00:17]} 35. Nf3+ {[%clk 0:00:39]}  Kd6 {[%clk 0:00:15]} 36. Ng5 {[%clk 0:00:38]}  Rxg5 {[%clk 0:00:16]} 37. hxg5 {[%clk 0:00:38]}  Re5 {[%clk 0:00:17]} 38. g6 {[%clk 0:00:37]}  Ne7 {[%clk 0:00:17]} 39. g7 {[%clk 0:00:36]}  Ke6 {[%clk 0:00:16]} 40. Rf1 {[%clk 0:00:34]}  Rg5 {[%clk 0:00:15]} 41. Rf8 {[%clk 0:00:33]}  Rxg7 {[%clk 0:00:15]} 42. Ra8 {[%clk 0:00:31]}  Nf5 {[%clk 0:00:16]} 43. Re8+ {[%clk 0:00:25]}  Kf7 {[%clk 0:00:12]} 44. Re5 {[%clk 0:00:24]}  Ne3+ {[%clk 0:00:12]} 45. Kg1 {[%clk 0:00:16]}  Nxd1 {[%clk 0:00:13]} 46. Rxd5 {[%clk 0:00:15]}  Nxb2 {[%clk 0:00:13]} 47. Rxc5 {[%clk 0:00:13]}  Ke6 {[%clk 0:00:13]} 48. Rxb5 {[%clk 0:00:13]}  Nc4 {[%clk 0:00:13]} 49. Rb7 {[%clk 0:00:12]}  Rxg3+ {[%clk 0:00:11]} 50. Kf2 {[%clk 0:00:12]}  Rf3+ {[%clk 0:00:11]} 51. Ke2 {[%clk 0:00:12]}  Rf7 {[%clk 0:00:12]} 52. Rb4 {[%clk 0:00:09]}  Nd6 {[%clk 0:00:11]} 53. c4 {[%clk 0:00:08]}  Rc7 {[%clk 0:00:10]} 54. Ke3 {[%clk 0:00:07]}  Rxc4 {[%clk 0:00:11]} 55. Rb7 {[%clk 0:00:03]}  Nxb7 {[%clk 0:00:11]} 0-1


[Site "https://www.chess.com"]

[Event "Titled Tuesday Blitz May 16 Early 2023"]
[White "Kramnik, Vladimir"]
[Black "Bilan, Danila"]
[WhiteFideId "4101588"]
[BlackFideId "24161918"]
[WhiteElo "2703"]
[BlackElo "2182"]
[Result "1-0"]
[Round "01"]
[TimeControl "180+2"]
[Date "2023.05.16"]
[WhiteClock "0:02:07"]
[BlackClock "0:00:06"]

1. c4 {[%clk 0:03:00]}  c6 {[%clk 0:02:58]} 2. Nf3 {[%clk 0:02:58]}  d5 {[%clk 0:02:58]} 3. e3 {[%clk 0:02:58]}  Nf6 {[%clk 0:02:57]} 4. Nc3 {[%clk 0:02:59]}  e6 {[%clk 0:02:54]} 5. b3 {[%clk 0:02:58]}  Nbd7 {[%clk 0:02:52]} 6. Bb2 {[%clk 0:02:56]}  Bd6 {[%clk 0:02:51]} 7. Qc2 {[%clk 0:02:53]}  Qe7 {[%clk 0:02:48]} 8. Rg1 {[%clk 0:02:45]}  Ba3 {[%clk 0:02:32]} 9. Bxa3 {[%clk 0:02:42]}  Qxa3 {[%clk 0:02:33]} 10. g4 {[%clk 0:02:42]}  h6 {[%clk 0:02:22]} 11. h4 {[%clk 0:02:40]}  g6 {[%clk 0:01:45]} 12. g5 {[%clk 0:02:38]}  hxg5 {[%clk 0:01:44]} 13. hxg5 {[%clk 0:02:36]}  Ng8 {[%clk 0:01:39]} 14. Nb1 {[%clk 0:02:27]}  Qd6 {[%clk 0:01:25]} 15. Qb2 {[%clk 0:02:27]}  e5 {[%clk 0:01:19]} 16. cxd5 {[%clk 0:02:24]}  Qxd5 {[%clk 0:01:01]} 17. Be2 {[%clk 0:02:23]}  Ne7 {[%clk 0:00:54]} 18. Nc3 {[%clk 0:02:23]}  Qa5 {[%clk 0:00:46]} 19. Ne4 {[%clk 0:02:14]}  Nf5 {[%clk 0:00:18]} 20. b4 {[%clk 0:02:13]}  Qc7 {[%clk 0:00:16]} 21. Nc5 {[%clk 0:02:10]}  Nxc5 {[%clk 0:00:10]} 22. bxc5 {[%clk 0:02:10]}  Be6 {[%clk 0:00:10]} 23. Qxe5 {[%clk 0:02:09]}  Qa5 {[%clk 0:00:06]} 24. Qxh8+ {[%clk 0:02:07]} 1-0


[Site "https://www.chess.com"]

[Event "Titled Tuesday Blitz May 16 Early 2023"]
[White "Yelisieiev, Yevhenii"]
[Black "Keymer, Vincent"]
[WhiteFideId "14139642"]
[BlackFideId "12940690"]
[WhiteElo "2403"]
[BlackElo "2669"]
[Result "0-1"]
[Round "01"]
[TimeControl "180+2"]
[Date "2023.05.16"]
[WhiteClock "0:00:00"]
[BlackClock "0:00:23"]

1. Nf3 {[%clk 0:02:59]}  d5 {[%clk 0:02:58]} 2. d4 {[%clk 0:02:58]}  Nf6 {[%clk 0:02:57]} 3. c4 {[%clk 0:02:57]}  e6 {[%clk 0:02:57]} 4. Nc3 {[%clk 0:02:56]}  a6 {[%clk 0:02:57]} 5. cxd5 {[%clk 0:02:48]}  exd5 {[%clk 0:02:57]} 6. Bg5 {[%clk 0:02:48]}  Be6 {[%clk 0:02:54]} 7. e3 {[%clk 0:02:48]}  Nbd7 {[%clk 0:02:54]} 8. Bd3 {[%clk 0:02:48]}  h6 {[%clk 0:02:52]} 9. Bh4 {[%clk 0:02:48]}  g5 {[%clk 0:02:45]} 10. Bg3 {[%clk 0:02:43]}  Nh5 {[%clk 0:02:46]} 11. Be5 {[%clk 0:02:21]}  Nhf6 {[%clk 0:02:45]} 12. Bg3 {[%clk 0:02:16]}  c6 {[%clk 0:02:31]} 13. Ne5 {[%clk 0:02:05]}  Nxe5 {[%clk 0:02:23]} 14. Bxe5 {[%clk 0:02:05]}  Bd6 {[%clk 0:02:23]} 15. O-O {[%clk 0:01:45]}  Bxe5 {[%clk 0:02:07]} 16. dxe5 {[%clk 0:01:45]}  Ng4 {[%clk 0:02:08]} 17. e4 {[%clk 0:01:41]}  d4 {[%clk 0:02:04]} 18. Na4 {[%clk 0:01:22]}  Nxe5 {[%clk 0:01:55]} 19. Nc5 {[%clk 0:01:21]}  b6 {[%clk 0:01:33]} 20. Nxe6 {[%clk 0:01:16]}  fxe6 {[%clk 0:01:34]} 21. Qh5+ {[%clk 0:01:12]}  Ke7 {[%clk 0:01:29]} 22. Rad1 {[%clk 0:00:56]}  Qe8 {[%clk 0:01:15]} 23. Qh3 {[%clk 0:00:43]}  Qf7 {[%clk 0:01:07]} 24. Be2 {[%clk 0:00:34]}  c5 {[%clk 0:01:04]} 25. Bh5 {[%clk 0:00:34]}  Qf6 {[%clk 0:00:55]} 26. f4 {[%clk 0:00:28]}  gxf4 {[%clk 0:00:53]} 27. g3 {[%clk 0:00:27]}  f3 {[%clk 0:00:52]} 28. b4 {[%clk 0:00:14]}  Rhf8 {[%clk 0:00:45]} 29. Rf2 {[%clk 0:00:09]}  Qg5 {[%clk 0:00:43]} 30. Rdf1 {[%clk 0:00:07]}  Rf6 {[%clk 0:00:40]} 31. Bxf3 {[%clk 0:00:06]}  Raf8 {[%clk 0:00:41]} 32. Bg2 {[%clk 0:00:03]}  Qe3 {[%clk 0:00:39]} 33. Qh4 {[%clk 0:00:02]}  Kd6 {[%clk 0:00:36]} 34. g4 {[%clk 0:00:02]}  c4 {[%clk 0:00:29]} 35. Qg3 {[%clk 0:00:00]}  Rxf2 {[%clk 0:00:23]} 0-1


[Site "https://www.chess.com"]

[Event "Titled Tuesday Blitz May 16 Early 2023"]
[White "FoxOnTheRun97"]
[Black "Tari, Aryan"]
[BlackFideId "1510045"]
[WhiteElo "2499"]
[BlackElo "2571"]
[Result "0-1"]
[Round "01"]
[TimeControl "180+2"]
[Date "2023.05.16"]
[WhiteClock "0:00:00"]
[BlackClock "0:01:29"]

1. d4 {[%clk 0:01:38]}  Nf6 {[%clk 0:02:38]} 2. Bg5 {[%clk 0:01:38]}  g6 {[%clk 0:02:35]} 3. Bxf6 {[%clk 0:01:37]}  exf6 {[%clk 0:02:36]} 4. e3 {[%clk 0:01:38]}  f5 {[%clk 0:02:36]} 5. g3 {[%clk 0:01:38]}  Bg7 {[%clk 0:02:36]} 6. Bg2 {[%clk 0:01:38]}  O-O {[%clk 0:02:37]} 7. Ne2 {[%clk 0:01:39]}  d6 {[%clk 0:02:31]} 8. O-O {[%clk 0:01:36]}  Nd7 {[%clk 0:02:31]} 9. c4 {[%clk 0:01:36]}  c6 {[%clk 0:02:27]} 10. Nbc3 {[%clk 0:01:34]}  a5 {[%clk 0:02:23]} 11. Rb1 {[%clk 0:01:29]}  Re8 {[%clk 0:02:23]} 12. a3 {[%clk 0:01:27]}  Nb6 {[%clk 0:02:21]} 13. Qd3 {[%clk 0:01:22]}  a4 {[%clk 0:02:19]} 14. Nf4 {[%clk 0:01:16]}  Ra5 {[%clk 0:02:13]} 15. b4 {[%clk 0:01:10]}  axb3 {[%clk 0:02:12]} 16. Rxb3 {[%clk 0:01:11]}  Na4 {[%clk 0:02:02]} 17. Rfb1 {[%clk 0:01:03]}  Nxc3 {[%clk 0:01:56]} 18. Qxc3 {[%clk 0:01:04]}  Ra4 {[%clk 0:01:57]} 19. h4 {[%clk 0:00:55]}  h5 {[%clk 0:01:54]} 20. Bf3 {[%clk 0:00:26]}  Qa5 {[%clk 0:01:51]} 21. Qxa5 {[%clk 0:00:25]}  Rxa5 {[%clk 0:01:52]} 22. Nd3 {[%clk 0:00:19]}  Ra4 {[%clk 0:01:48]} 23. c5 {[%clk 0:00:18]}  d5 {[%clk 0:01:43]} 24. Nb2 {[%clk 0:00:14]}  Ra7 {[%clk 0:01:43]} 25. Nd1 {[%clk 0:00:14]}  Kf8 {[%clk 0:01:41]} 26. Nc3 {[%clk 0:00:10]}  Ke7 {[%clk 0:01:41]} 27. Kf1 {[%clk 0:00:09]}  Kd8 {[%clk 0:01:41]} 28. Be2 {[%clk 0:00:09]}  Kc7 {[%clk 0:01:41]} 29. Bd3 {[%clk 0:00:10]}  Be6 {[%clk 0:01:41]} 30. Ke2 {[%clk 0:00:08]}  Rea8 {[%clk 0:01:41]} 31. Ra1 {[%clk 0:00:07]}  Bf6 {[%clk 0:01:38]} 32. Kd2 {[%clk 0:00:08]}  f4 {[%clk 0:01:39]} 33. gxf4 {[%clk 0:00:06]}  Bxh4 {[%clk 0:01:39]} 34. f3 {[%clk 0:00:05]}  Bf6 {[%clk 0:01:39]} 35. Ne2 {[%clk 0:00:04]}  Ra5 {[%clk 0:01:38]} 36. Kc2 {[%clk 0:00:04]}  Rxc5+ {[%clk 0:01:37]} 37. dxc5 {[%clk 0:00:02]}  Bxa1 {[%clk 0:01:38]} 38. Nd4 {[%clk 0:00:01]}  Bxd4 {[%clk 0:01:38]} 39. exd4 {[%clk 0:00:02]}  h4 {[%clk 0:01:38]} 40. Kb2 {[%clk 0:00:02]}  h3 {[%clk 0:01:38]} 41. Ka2 {[%clk 0:00:02]}  Rh8 {[%clk 0:01:37]} 42. Rb1 {[%clk 0:00:02]}  Rh4 {[%clk 0:01:38]} 43. Rh1 {[%clk 0:00:03]}  Rxf4 {[%clk 0:01:38]} 44. Be2 {[%clk 0:00:03]}  Rxd4 {[%clk 0:01:38]} 45. Kb3 {[%clk 0:00:03]}  Rd2 {[%clk 0:01:39]} 46. Bf1 {[%clk 0:00:01]}  h2 {[%clk 0:01:39]} 47. Kc3 {[%clk 0:00:01]}  Rf2 {[%clk 0:01:39]} 48. Kd4 {[%clk 0:00:01]}  Rxf3 {[%clk 0:01:37]} 49. a4 {[%clk 0:00:01]}  Bf5 {[%clk 0:01:34]} 50. a5 {[%clk 0:00:01]}  Ra3 {[%clk 0:01:34]} 51. Ke5 {[%clk 0:00:01]}  Ra1 {[%clk 0:01:31]} 52. Rxh2 {[%clk 0:00:01]}  Rxf1 {[%clk 0:01:31]} 53. a6 {[%clk 0:00:02]}  bxa6 {[%clk 0:01:31]} 54. Rb2 {[%clk 0:00:02]}  Be6 {[%clk 0:01:30]} 55. Kd4 {[%clk 0:00:02]}  Re1 {[%clk 0:01:28]} 56. Kd3 {[%clk 0:00:03]}  Re4 {[%clk 0:01:28]} 57. Ra2 {[%clk 0:00:02]}  g5 {[%clk 0:01:27]} 58. Rb2 {[%clk 0:00:02]}  g4 {[%clk 0:01:28]} 59. Rh2 {[%clk 0:00:02]}  g3 {[%clk 0:01:28]} 60. Rh7 {[%clk 0:00:02]}  Rg4 {[%clk 0:01:26]} 61. Rh1 {[%clk 0:00:01]}  g2 {[%clk 0:01:27]} 62. Rg1 {[%clk 0:00:02]}  a5 {[%clk 0:01:27]} 63. Ke3 {[%clk 0:00:02]}  a4 {[%clk 0:01:28]} 64. Kf2 {[%clk 0:00:00]}  a3 {[%clk 0:01:29]} 0-1


[Site "https://www.chess.com"]

[Event "Titled Tuesday Blitz May 16 Early 2023"]
[White "Galchenko, Matvey"]
[Black "Molenda, Marcin"]
[WhiteFideId "24175480"]
[BlackFideId "1173065"]
[WhiteElo "2423"]
[BlackElo "2286"]
[Result "1-0"]
[Round "01"]
[TimeControl "180+2"]
[Date "2023.05.16"]
[WhiteClock "0:00:16"]
[BlackClock "0:00:08"]

1. f4 {[%clk 0:02:57]}  b6 {[%clk 0:02:57]} 2. Nf3 {[%clk 0:02:57]}  Bb7 {[%clk 0:02:58]} 3. g3 {[%clk 0:02:58]}  Bxf3 {[%clk 0:02:56]} 4. exf3 {[%clk 0:02:59]}  h5 {[%clk 0:02:56]} 5. h4 {[%clk 0:02:44]}  Nf6 {[%clk 0:02:54]} 6. d4 {[%clk 0:02:43]}  d5 {[%clk 0:02:52]} 7. Be3 {[%clk 0:02:41]}  e6 {[%clk 0:02:51]} 8. Bd3 {[%clk 0:02:39]}  c5 {[%clk 0:02:50]} 9. c3 {[%clk 0:02:38]}  c4 {[%clk 0:02:51]} 10. Bc2 {[%clk 0:02:38]}  Nc6 {[%clk 0:02:51]} 11. Nd2 {[%clk 0:02:36]}  b5 {[%clk 0:02:51]} 12. f5 {[%clk 0:02:33]}  Bd6 {[%clk 0:02:51]} 13. Kf2 {[%clk 0:02:32]}  Qc7 {[%clk 0:02:50]} 14. Rg1 {[%clk 0:02:29]}  exf5 {[%clk 0:02:45]} 15. Bxf5 {[%clk 0:02:29]}  Ne7 {[%clk 0:02:45]} 16. Bc2 {[%clk 0:02:21]}  O-O-O {[%clk 0:02:41]} 17. b3 {[%clk 0:02:15]}  Rhe8 {[%clk 0:02:38]} 18. Bg5 {[%clk 0:02:07]}  b4 {[%clk 0:02:17]} 19. cxb4 {[%clk 0:02:00]}  c3 {[%clk 0:02:16]} 20. Nf1 {[%clk 0:01:59]}  Bxb4 {[%clk 0:02:13]} 21. a3 {[%clk 0:01:58]}  Ba5 {[%clk 0:02:13]} 22. Ne3 {[%clk 0:01:53]}  Bb6 {[%clk 0:02:11]} 23. b4 {[%clk 0:01:31]}  Nc6 {[%clk 0:02:09]} 24. Bf5+ {[%clk 0:01:30]}  Kb7 {[%clk 0:02:07]} 25. Nc2 {[%clk 0:01:17]}  Nxd4 {[%clk 0:01:58]} 26. Nxd4 {[%clk 0:01:15]}  Qe5 {[%clk 0:01:59]} 27. Kg2 {[%clk 0:00:56]}  Qxd4 {[%clk 0:01:57]} 28. Qc2 {[%clk 0:00:52]}  Qc4 {[%clk 0:01:44]} 29. Bd3 {[%clk 0:00:51]}  Qc6 {[%clk 0:01:38]} 30. Rgd1 {[%clk 0:00:42]}  Be3 {[%clk 0:01:35]} 31. a4 {[%clk 0:00:42]}  Bxg5 {[%clk 0:01:29]} 32. hxg5 {[%clk 0:00:43]}  Nd7 {[%clk 0:01:29]} 33. Rac1 {[%clk 0:00:38]}  d4 {[%clk 0:01:24]} 34. b5 {[%clk 0:00:38]}  Qc5 {[%clk 0:01:17]} 35. Be4+ {[%clk 0:00:37]}  Kb8 {[%clk 0:01:18]} 36. a5 {[%clk 0:00:33]}  Ne5 {[%clk 0:01:11]} 37. b6 {[%clk 0:00:34]}  Nc4 {[%clk 0:01:08]} 38. Qb3 {[%clk 0:00:26]}  Ne3+ {[%clk 0:01:07]} 39. Kh2 {[%clk 0:00:25]}  Rxe4 {[%clk 0:01:05]} 40. fxe4 {[%clk 0:00:21]}  h4 {[%clk 0:01:01]} 41. bxa7+ {[%clk 0:00:21]}  Kxa7 {[%clk 0:01:01]} 42. Qxf7+ {[%clk 0:00:20]}  Ka8 {[%clk 0:00:57]} 43. Rb1 {[%clk 0:00:19]}  hxg3+ {[%clk 0:00:57]} 44. Kg1 {[%clk 0:00:19]}  Qa7 {[%clk 0:00:41]} 45. Qe6 {[%clk 0:00:13]}  Rb8 {[%clk 0:00:11]} 46. Qc6+ {[%clk 0:00:14]}  Rb7 {[%clk 0:00:11]} 47. a6 {[%clk 0:00:15]}  Nxd1 {[%clk 0:00:09]} 48. Rxb7 {[%clk 0:00:15]}  d3+ {[%clk 0:00:07]} 49. Rxa7+ {[%clk 0:00:15]}  Kxa7 {[%clk 0:00:08]} 50. Qb7# {[%clk 0:00:16]} 1-0


[Site "https://www.chess.com"]